[Event "POL-chT 2nd League-3 2020"]
[Site "Poronin"]
[Date "2020.09.08"]
[Round "4.15"]
[White "Ociepka, Tomasz"]
[Black "Gola, Karol"]
[Result "0-1"]
[ECO "B42"]
[WhiteElo "1888"]
[BlackElo "2192"]
[Annotator "NA"]
[PlyCount "82"]
[EventDate "2020.09.05"]
[EventType "team-tourn"]
[EventCountry "POL"]
[SourceTitle "playchess.com"]
[Source "ChessBase"]
[SourceQuality "1"]
[TimeControl "40/5400+30:900+30"]

1. e4 {[%emt 0:00:00]} c5 {[%emt 0:00:00]} 2. Nf3 {[%emt 0:00:00]} e6 {[%emt 0:00:00]} 3. d4 {[%emt 0:00:00]} cxd4 {[%emt 0:00:00]} 4. Nxd4 {[%emt 0:00:00]} a6 {[%emt 0:00:00]} 5. Bd3 {[%emt 0:00:00]} Nf6 {[%emt 0:00:00]} 6. O-O {[%emt 0:00:08]} Qc7 {[%emt 0:00:02]} 7. Qe2 {[%emt 0:00:09]} d6 {[%emt 0:00:12]} 8. c4 {[%emt 0:00:09]} g6 {[%emt 0:00:16]} 9. f4 {[%emt 0:02:20]} Bg7 {[%emt 0:00:28] B42: Sicilian: Kan Variation: 5 Bd3.} 10. Nc3 {[%emt 0:11:26]} O-O {[%emt 0:01:10]} 11. Be3 {[%emt 0:07:13]} Nc6 {[%emt 0:05:20]} 12. Nxc6 {[%emt 0:08:31]} bxc6 {[%emt 0:04:16] [#]} 13. e5 $146 {[%emt 0:11:56]} ({Predecessor:} 13. g4 Re8 14. Rad1 Rb8 15. Qg2 Nd7 16. Rd2 f5 17. c5 Nxc5 18. Bxc5 dxc5 19. e5 {1-0 (99) Mateus,M (2116)-Chirivi Castiblanco,J (2198) Palmira 2017}) 13... dxe5 {[%emt 0:05:22]} 14. Bc5 {[%emt 0:00:56]} exf4 {[%emt 0:29:54]} 15. Bxf8 {[%emt 0:02:30]} Bxf8 {[%emt 0:00:04]} 16. g3 {[%emt 0:10:03]} Bc5+ {[%emt 0:00:51]} 17. Kh1 {[%emt 0:06:10]} Nh5 {[%emt 0:13:59]} 18. Ne4 {[%emt 0:03:10]} Bd4 {[%emt 0:01:48]} 19. g4 {[%emt 0:09:28]} Nf6 {[%emt 0:01:59]} 20. g5 {[%emt 0:03:24]} Nxe4 {[%emt 0:01:55]} 21. Bxe4 {[%emt 0:01:07]} Rb8 {[%emt 0:05:34]} 22. Rab1 {[%emt 0:00:47]} c5 {[%emt 0:01:09]} 23. b3 {[%emt 0:01:24]} e5 {[%emt 0:03:23]} 24. Rbd1 {[%emt 0:01:43]} Qe7 {[%emt 0:11:34]} 25. Qg2 {[%emt 0:01:04]} f6 {[%emt 0:01:08]} 26. Bd5+ {[%emt 0:00:56]} Kg7 {[%emt 0:00:16]} 27. gxf6+ {[%emt 0:02:55]} Qxf6 {[%emt 0:00:28]} 28. Rde1 {[%emt 0:00:48]} g5 {[%emt 0:00:37]} 29. Bf3 {[%emt 0:01:01]} Qg6 {[%emt 0:03:32]} 30. Be4 $19 {[%emt 0:01:30]} Qh5 {[%emt 0:01:19]} 31. Qc2 {[%emt 0:04:36]} g4 {[%emt 0:02:05]} 32. Re2 {[%emt 0:01:02]} f3 {[%emt 0:03:25]} 33. Rd2 {[%emt 0:01:21]} Rb6 {[%emt 0:00:33]} 34. Qd1 {[%emt 0:01:39]} Bf5 {[%emt 0:00:46]} 35. Qc2 {[%emt 0:01:53]} Rf6 {[%emt 0:00:10]} 36. Bxf5 {[%emt 0:03:16]} Qxf5 {[%emt 0:00:04]} 37. Qxf5 {[%emt 0:00:30]} Rxf5 {[%emt 0:00:02]} 38. Rfd1 {[%emt 0:00:46]} e4 {[%emt 0:00:22]} 39. Rf1 {[%emt 0:00:49]} e3 {[%emt 0:00:10]} 40. Rd3 {[%emt 0:00:00]} e2 {[%emt 0:00:00]} 41. Re1 {[%emt 0:00:19]} f2 {[%emt 0:00:35]} 0-1

[Event "POL-chT 2nd League-3 2020"]
[Site "Poronin"]
[Date "2020.09.08"]
[Round "4.16"]
[White "Flasinski, Michal"]
[Black "Boruta, Dawid"]
[Result "1/2-1/2"]
[ECO "A58"]
[WhiteElo "2205"]
[BlackElo "1822"]
[Annotator "ChessBase"]
[PlyCount "89"]
[EventDate "2020.09.05"]
[EventType "team-tourn"]
[EventCountry "POL"]
[SourceTitle "playchess.com"]
[Source "ChessBase"]
[SourceQuality "1"]
[TimeControl "40/5400+30:900+30"]

1. d4 {[%emt 0:00:00]} Nf6 {[%emt 0:00:00]} 2. c4 {[%emt 0:00:00]} c5 {[%emt 0:00:11]} 3. d5 {[%emt 0:00:00]} b5 {[%emt 0:00:08]} 4. cxb5 {[%emt 0:00:17]} a6 {[%emt 0:00:05]} 5. bxa6 {[%emt 0:00:07]} g6 {[%emt 0:00:07]} 6. Nc3 {[%emt 0:00:06]} Bg7 {[%emt 0:00:55]} 7. g3 {[%emt 0:00:10]} d6 {[%emt 0:00:42]} 8. Bg2 {[%emt 0:00:07]} O-O {[%emt 0:00:15]} 9. Nf3 {[%emt 0:00:05]} Nbd7 {[%emt 0:04:54]} 10. O-O {[%emt 0:03:34]} Nb6 {[%emt 0:05:38]} 11. Nd2 {[%emt 0:25:53]} Bxa6 {[%emt 0:00:43]} 12. Qc2 {[%emt 0:00:11]} Bb7 {[%emt 0:14:23]} 13. e4 {[%emt 0:01:55]} Ba6 {[%emt 0:09:01]} 14. Rd1 {[%emt 0:01:14]} Ng4 {[%emt 0:02:28]} 15. Nf3 {[%emt 0:06:54]} Ne5 {[%emt 0:07:27]} 16. Nxe5 {[%emt 0:08:48]} Bxe5 {[%emt 0:00:03]} 17. Bh6 {[%emt 0:00:43]} Re8 {[%emt 0:01:07]} 18. b3 {[%emt 0:02:44]} Qd7 {[%emt 0:04:17]} 19. Rab1 {[%emt 0:04:28]} Rec8 {[%emt 0:00:45]} 20. Be3 {[%emt 0:00:48]} Rab8 {[%emt 0:05:50]} 21. Rdc1 {[%emt 0:12:25]} Qg4 {[%emt 0:03:36]} 22. f3 {[%emt 0:05:12]} Qd7 {[%emt 0:00:57]} 23. Qd2 {[%emt 0:02:48]} Rc7 {[%emt 0:03:09]} 24. Nd1 {[%emt 0:01:43]} Qb5 {[%emt 0:10:34]} 25. Nf2 {[%emt 0:01:33]} Qe2 {[%emt 0:05:45]} 26. Qxe2 {[%emt 0:04:52]} Bxe2 {[%emt 0:00:01]} 27. f4 {[%emt 0:01:08]} Bg7 {[%emt 0:00:57]} 28. Bf1 {[%emt 0:00:20]} Bxf1 {[%emt 0:00:40]} 29. Kxf1 {[%emt 0:00:02]} Rcb7 {[%emt 0:02:39]} 30. Ke2 {[%emt 0:01:14]} f5 {[%emt 0:04:16]} 31. Kd3 {[%emt 0:00:12]} fxe4+ {[%emt 0:00:32]} 32. Kxe4 {[%emt 0:00:02]} Na4 {[%emt 0:00:50]} 33. Bd2 {[%emt 0:00:47]} Nb6 {[%emt 0:04:24]} 34. Nd3 {[%emt 0:00:49]} Nd7 {[%emt 0:00:10]} 35. Bc3 {[%emt 0:06:51]} Bxc3 {[%emt 0:00:06]} 36. Rxc3 {[%emt 0:00:01]} Nf6+ {[%emt 0:00:07]} 37. Kf3 {[%emt 0:00:08]} Nxd5 {[%emt 0:00:05]} 38. Rc2 {[%emt 0:00:30]} Nb4 {[%emt 0:00:22]} 39. Nxb4 {[%emt 0:00:11]} Rxb4 {[%emt 0:00:04]} 40. Re1 {[%emt 0:00:00]} Kf7 {[%emt 0:00:00]} 41. Rce2 {[%emt 0:01:31]} R8b7 {[%emt 0:04:06]} 42. Re4 {[%emt 0:01:06]} R4b6 {[%emt 0:07:53]} 43. Ra4 {[%emt 0:03:55]} e6 {[%emt 0:01:03]} 44. Ke3 {[%emt 0:00:57]} Kf6 {[%emt 0:01:42]} 45. Kd3 {[%emt 0:00:35]} 1/2-1/2

[Event "POL-chT 2nd League-3 2020"]
[Site "Poronin"]
[Date "2020.09.08"]
[Round "4.17"]
[White "Gonsior, Monika"]
[Black "Szczecina, Kamil"]
[Result "1-0"]
[ECO "B41"]
[WhiteElo "2001"]
[BlackElo "1966"]
[Annotator "ChessBase"]
[PlyCount "95"]
[EventDate "2020.09.05"]
[EventType "team-tourn"]
[EventCountry "POL"]
[SourceTitle "playchess.com"]
[Source "ChessBase"]
[SourceQuality "1"]
[TimeControl "40/5400+30:900+30"]

1. e4 {[%emt 0:00:00]} c5 {[%emt 0:00:00]} 2. Nf3 {[%emt 0:00:00]} e6 {[%emt 0:00:00]} 3. d4 {[%emt 0:00:00]} cxd4 {[%emt 0:00:04]} 4. Nxd4 {[%emt 0:00:00]} a6 {[%emt 0:00:26]} 5. c4 {[%emt 0:00:18]} Nf6 {[%emt 0:00:22]} 6. Nc3 {[%emt 0:00:20]} Qc7 {[%emt 0:00:11]} 7. Bd3 {[%emt 0:01:27]} d6 {[%emt 0:00:20]} 8. O-O {[%emt 0:00:27]} Nbd7 {[%emt 0:00:12]} 9. Bg5 {[%emt 0:03:23]} Be7 {[%emt 0:01:02]} 10. Rc1 {[%emt 0:00:39]} b6 {[%emt 0:02:37]} 11. Kh1 {[%emt 0:01:46]} Bb7 {[%emt 0:00:30]} 12. f3 {[%emt 0:02:25]} Rc8 {[%emt 0:01:32]} 13. Qd2 {[%emt 0:06:17]} Qb8 {[%emt 0:05:20]} 14. b3 {[%emt 0:01:54]} Bd8 {[%emt 0:05:18]} 15. Rfe1 {[%emt 0:02:55]} O-O {[%emt 0:02:17]} 16. Bb1 {[%emt 0:03:03]} Bc7 {[%emt 0:04:22]} 17. f4 {[%emt 0:01:38]} Rfe8 {[%emt 0:15:06]} 18. Nf3 {[%emt 0:07:15]} h6 {[%emt 0:08:36]} 19. Bh4 {[%emt 0:01:09]} Nh7 {[%emt 0:18:08]} 20. Re3 {[%emt 0:04:27]} Nhf8 {[%emt 0:05:44]} 21. Rd1 {[%emt 0:04:29]} b5 {[%emt 0:13:10]} 22. cxb5 {[%emt 0:02:04]} d5 {[%emt 0:02:01]} 23. bxa6 {[%emt 0:04:33]} Bxa6 {[%emt 0:02:39]} 24. e5 {[%emt 0:03:00]} Bb6 {[%emt 0:03:04]} 25. Nd4 {[%emt 0:01:10]} Qa7 {[%emt 0:00:30]} 26. Bf2 {[%emt 0:03:46]} f6 {[%emt 0:05:09]} 27. Rg3 {[%emt 0:02:05]} fxe5 {[%emt 0:01:42]} 28. fxe5 {[%emt 0:00:23]} Nxe5 {[%emt 0:01:32]} 29. Ndb5 {[%emt 0:01:06]} Qb8 {[%emt 0:01:50]} 30. Bxb6 {[%emt 0:03:37]} Qxb6 {[%emt 0:00:23]} 31. a4 {[%emt 0:03:12]} Bxb5 {[%emt 0:00:33]} 32. Nxb5 {[%emt 0:00:15]} Nf7 {[%emt 0:00:37]} 33. Rf1 {[%emt 0:00:28]} Re7 {[%emt 0:00:26]} 34. Qf4 {[%emt 0:00:41]} Rc6 {[%emt 0:00:42]} 35. Rxg7+ {[%emt 0:00:37]} Kxg7 {[%emt 0:00:19]} 36. Qf6+ {[%emt 0:00:06]} Kg8 {[%emt 0:00:09]} 37. Qxe7 {[%emt 0:00:15]} Qf2 {[%emt 0:00:19]} 38. Bd3 {[%emt 0:05:23]} Qxf1+ {[%emt 0:00:54]} 39. Bxf1 {[%emt 0:00:07]} e5 {[%emt 0:00:11]} 40. g4 {[%emt 0:00:00]} e4 {[%emt 0:00:00]} 41. Nd4 {[%emt 0:01:56]} Rg6 {[%emt 0:07:07]} 42. Be2 {[%emt 0:01:13]} Rd6 {[%emt 0:03:01]} 43. Bb5 {[%emt 0:01:41]} Ng6 {[%emt 0:01:20]} 44. Qe8+ {[%emt 0:00:40]} Nf8 {[%emt 0:00:02]} 45. h4 {[%emt 0:02:23]} Rf6 {[%emt 0:04:46]} 46. Bc6 {[%emt 0:01:36]} Rd6 {[%emt 0:01:41]} 47. a5 {[%emt 0:02:21]} Rd8 {[%emt 0:01:32]} 48. Qe7 {[%emt 0:00:36]} 1-0

[Event "POL-chT 2nd League-3 2020"]
[Site "Poronin"]
[Date "2020.09.08"]
[Round "4.18"]
[White "Mazur, Anna"]
[Black "Swiech, Joanna"]
[Result "1-0"]
[ECO "C70"]
[WhiteElo "1731"]
[BlackElo "1910"]
[Annotator "ChessBase"]
[PlyCount "105"]
[EventDate "2020.09.05"]
[EventType "team-tourn"]
[EventCountry "POL"]
[SourceTitle "playchess.com"]
[Source "ChessBase"]
[SourceQuality "1"]
[TimeControl "40/5400+30:900+30"]

1. e4 {[%emt 0:00:00]} e5 {[%emt 0:00:00]} 2. Nf3 {[%emt 0:00:00]} Nc6 {[%emt 0:00:00]} 3. Bb5 {[%emt 0:00:00]} a6 {[%emt 0:00:00]} 4. Ba4 {[%emt 0:00:00]} Nge7 {[%emt 0:00:00]} 5. c3 {[%emt 0:00:25]} g6 {[%emt 0:00:16]} 6. O-O {[%emt 0:00:57]} Bg7 {[%emt 0:00:12]} 7. d4 {[%emt 0:03:05]} exd4 {[%emt 0:00:11]} 8. cxd4 {[%emt 0:00:06]} b5 {[%emt 0:00:15]} 9. Bc2 {[%emt 0:00:10]} O-O {[%emt 0:00:30]} 10. h3 {[%emt 0:02:16]} d6 {[%emt 0:00:46]} 11. Nc3 {[%emt 0:04:33]} Na5 {[%emt 0:01:45]} 12. Re1 {[%emt 0:16:33]} c5 {[%emt 0:02:26]} 13. a3 {[%emt 0:11:35]} Nc4 {[%emt 0:08:34]} 14. Rb1 {[%emt 0:03:43]} Bb7 {[%emt 0:04:24]} 15. Bb3 {[%emt 0:09:34]} Nb6 {[%emt 0:04:07]} 16. Bf4 {[%emt 0:01:16]} Rc8 {[%emt 0:03:36]} 17. Qd2 {[%emt 0:01:43]} c4 {[%emt 0:03:26]} 18. Bc2 {[%emt 0:00:36]} Re8 {[%emt 0:05:09]} 19. Bh6 {[%emt 0:04:40]} Bh8 {[%emt 0:00:57]} 20. Rbd1 {[%emt 0:01:02]} Qd7 {[%emt 0:10:37]} 21. Be3 {[%emt 0:07:28]} d5 {[%emt 0:03:19]} 22. e5 {[%emt 0:01:02]} Nf5 {[%emt 0:04:10]} 23. Bf4 {[%emt 0:01:20]} Ng7 {[%emt 0:01:22]} 24. Bh6 {[%emt 0:03:40]} Ne6 {[%emt 0:03:14]} 25. Nh2 {[%emt 0:01:50]} Qe7 {[%emt 0:07:10]} 26. Re3 {[%emt 0:04:45]} Bg7 {[%emt 0:06:44]} 27. Bxg7 {[%emt 0:00:10]} Kxg7 {[%emt 0:01:22]} 28. Ng4 {[%emt 0:00:32]} Nd7 {[%emt 0:04:44]} 29. Rf3 {[%emt 0:00:32]} Qg5 {[%emt 0:01:07]} 30. Ne3 {[%emt 0:03:25]} Nb6 {[%emt 0:10:04]} 31. Rg3 {[%emt 0:00:20]} Qd8 {[%emt 0:01:12]} 32. Nf5+ {[%emt 0:00:44]} Kg8 {[%emt 0:00:14]} 33. Nd6 {[%emt 0:00:21]} Re7 {[%emt 0:00:36]} 34. Nxc8 {[%emt 0:00:23]} Bxc8 {[%emt 0:00:05]} 35. f4 {[%emt 0:01:52]} Ng7 {[%emt 0:00:33]} 36. Rf1 {[%emt 0:00:55]} Nf5 {[%emt 0:01:33]} 37. Rgf3 {[%emt 0:02:42]} Nh4 {[%emt 0:05:53]} 38. R3f2 {[%emt 0:01:39]} h5 {[%emt 0:00:50]} 39. Ne2 {[%emt 0:02:58]} Re8 {[%emt 0:02:55]} 40. Ng3 {[%emt 0:00:00]} Nf5 {[%emt 0:00:00]} 41. Nxf5 {[%emt 0:05:33]} Bxf5 {[%emt 0:00:35]} 42. Bxf5 {[%emt 0:00:26]} gxf5 {[%emt 0:00:06]} 43. Qc2 {[%emt 0:00:54]} Qd7 {[%emt 0:00:07]} 44. Qe2 {[%emt 0:00:06]} Qe6 {[%emt 0:01:31]} 45. Qxh5 {[%emt 0:00:32]} Qg6 {[%emt 0:00:08]} 46. Qf3 {[%emt 0:00:50]} Kh8 {[%emt 0:02:54]} 47. g4 {[%emt 0:03:00]} Rg8 {[%emt 0:00:21]} 48. g5 {[%emt 0:00:59]} Rg7 {[%emt 0:00:27]} 49. h4 {[%emt 0:04:07]} Rh7 {[%emt 0:00:07]} 50. Rh2 {[%emt 0:00:05]} Qe6 {[%emt 0:00:40]} 51. h5 {[%emt 0:01:15]} Nc8 {[%emt 0:00:37]} 52. Rff2 {[%emt 0:00:42]} Ne7 {[%emt 0:00:16]} 53. Rfg2 {[%emt 0:00:22]} 1-0

[Event "POL-chT 2nd League-3 2020"]
[Site "Poronin"]
[Date "2020.09.08"]
[Round "4.19"]
[White "Psyk, Radoslaw"]
[Black "Nowicki, Bartosz"]
[Result "1-0"]
[ECO "B51"]
[WhiteElo "2354"]
[BlackElo "2339"]
[Annotator "ChessBase"]
[PlyCount "93"]
[EventDate "2020.09.05"]
[EventType "team-tourn"]
[EventCountry "POL"]
[SourceTitle "playchess.com"]
[Source "ChessBase"]
[SourceQuality "1"]
[TimeControl "40/5400+30:900+30"]

1. e4 {[%emt 0:00:00]} c5 {[%emt 0:00:00]} 2. Nf3 {[%emt 0:00:00]} d6 {[%emt 0:00:00]} 3. Bb5+ {[%emt 0:00:00]} Nd7 {[%emt 0:00:00]} 4. d4 {[%emt 0:00:03]} cxd4 {[%emt 0:00:00]} 5. Qxd4 {[%emt 0:00:02]} a6 {[%emt 0:00:00]} 6. Be2 {[%emt 0:00:21]} e5 {[%emt 0:00:34]} 7. Qe3 {[%emt 0:01:02]} Ngf6 {[%emt 0:00:09]} 8. c4 {[%emt 0:03:54]} Be7 {[%emt 0:00:55]} 9. Nc3 {[%emt 0:01:16]} O-O {[%emt 0:05:28]} 10. O-O {[%emt 0:00:12]} Nc5 {[%emt 0:02:29]} 11. Nd2 {[%emt 0:08:49]} Ne6 {[%emt 0:02:45]} 12. b3 {[%emt 0:27:22]} Nd4 {[%emt 0:04:29]} 13. Qd3 {[%emt 0:04:22]} Nd7 {[%emt 0:02:19]} 14. Nf3 {[%emt 0:00:51]} Nc5 {[%emt 0:00:21]} 15. Qd2 {[%emt 0:00:39]} Bf6 {[%emt 0:06:48]} 16. Bb2 {[%emt 0:01:21]} Qa5 {[%emt 0:22:41]} 17. Rfd1 {[%emt 0:04:57]} Nce6 {[%emt 0:18:04]} 18. Nd5 {[%emt 0:03:17]} Nxe2+ {[%emt 0:02:29]} 19. Qxe2 {[%emt 0:00:25]} Bd8 {[%emt 0:04:55]} 20. Bc3 {[%emt 0:00:50]} Qc5 {[%emt 0:00:09]} 21. Bb4 {[%emt 0:00:24]} Qc6 {[%emt 0:00:26]} 22. Bxd6 {[%emt 0:00:58]} Nd4 {[%emt 0:00:25]} 23. Nxd4 {[%emt 0:03:36]} Qxd6 {[%emt 0:00:07]} 24. Nf5 {[%emt 0:01:28]} Qe6 {[%emt 0:02:06]} 25. Rd2 {[%emt 0:04:49]} g6 {[%emt 0:00:17]} 26. Nfe3 {[%emt 0:00:40]} Rb8 {[%emt 0:00:42]} 27. Rad1 {[%emt 0:04:24]} Bg5 {[%emt 0:00:33]} 28. Nc3 {[%emt 0:06:56]} f5 {[%emt 0:01:49]} 29. Rd6 {[%emt 0:01:27]} Qe7 {[%emt 0:00:47]} 30. c5 {[%emt 0:00:53]} Kh8 {[%emt 0:02:25]} 31. Ned5 {[%emt 0:01:42]} Qg7 {[%emt 0:00:02]} 32. b4 {[%emt 0:02:54]} f4 {[%emt 0:01:58]} 33. f3 {[%emt 0:00:23]} Qf7 {[%emt 0:00:16]} 34. Nb6 {[%emt 0:00:32]} Be6 {[%emt 0:00:16]} 35. Nd7 {[%emt 0:00:12]} Bxd7 {[%emt 0:01:52]} 36. Rxd7 {[%emt 0:00:06]} Be7 {[%emt 0:00:10]} 37. Rc7 {[%emt 0:09:16]} Rfc8 {[%emt 0:00:11]} 38. Rdd7 {[%emt 0:02:52]} Rxc7 {[%emt 0:00:01]} 39. Rxc7 {[%emt 0:00:02]} Qe6 {[%emt 0:00:25]} 40. Qd1 {[%emt 0:00:00]} Qc4 {[%emt 0:00:00]} 41. Nd5 {[%emt 0:03:17]} Bd8 {[%emt 0:10:35]} 42. Rd7 {[%emt 0:00:45]} Qxa2 {[%emt 0:00:50]} 43. Nc3 {[%emt 0:01:30]} Qg8 {[%emt 0:00:15]} 44. Qd6 {[%emt 0:00:09]} Qe8 {[%emt 0:00:55]} 45. Nd5 {[%emt 0:00:36]} Kg8 {[%emt 0:00:53]} 46. Qxb8 {[%emt 0:00:20]} Qxd7 {[%emt 0:00:06]} 47. Nf6+ {[%emt 0:00:03]} 1-0

[Event "POL-chT 2nd League-3 2020"]
[Site "Poronin"]
[Date "2020.09.08"]
[Round "4.20"]
[White "Parol, Pawel"]
[Black "Zaskalski, Arkadiusz"]
[Result "1/2-1/2"]
[ECO "B36"]
[WhiteElo "2114"]
[BlackElo "2175"]
[Annotator "ChessBase"]
[PlyCount "49"]
[EventDate "2020.09.05"]
[EventType "team-tourn"]
[EventCountry "POL"]
[SourceTitle "playchess.com"]
[Source "ChessBase"]
[SourceQuality "1"]
[TimeControl "40/5400+30:900+30"]

1. d4 {[%emt 0:00:00]} Nf6 {[%emt 0:00:00]} 2. c4 {[%emt 0:00:00]} c5 {[%emt 0:00:35]} 3. Nf3 {[%emt 0:00:28]} g6 {[%emt 0:00:57]} 4. Nc3 {[%emt 0:00:52]} cxd4 {[%emt 0:00:32]} 5. Nxd4 {[%emt 0:00:08]} Nc6 {[%emt 0:01:34]} 6. e4 {[%emt 0:01:59]} Nxd4 {[%emt 0:02:35]} 7. Qxd4 {[%emt 0:00:07]} d6 {[%emt 0:00:07]} 8. Be2 {[%emt 0:07:01]} Bg7 {[%emt 0:00:36]} 9. Be3 {[%emt 0:00:10]} O-O {[%emt 0:02:14]} 10. Qd2 {[%emt 0:00:35]} a5 {[%emt 0:05:11]} 11. f3 {[%emt 0:06:10]} a4 {[%emt 0:01:55]} 12. O-O {[%emt 0:03:20]} Qa5 {[%emt 0:02:08]} 13. Rac1 {[%emt 0:03:13]} Bd7 {[%emt 0:16:36]} 14. Rfd1 {[%emt 0:14:26]} Rfc8 {[%emt 0:18:35]} 15. Bf1 {[%emt 0:15:11]} Bc6 {[%emt 0:01:56]} 16. Ne2 {[%emt 0:14:15]} Qxd2 {[%emt 0:03:49]} 17. Rxd2 {[%emt 0:01:09]} Nd7 {[%emt 0:01:58]} 18. Nd4 {[%emt 0:03:53]} Nc5 {[%emt 0:01:16]} 19. Rb1 {[%emt 0:12:31]} Bd7 {[%emt 0:01:38]} 20. Kf2 {[%emt 0:07:00]} Ne6 {[%emt 0:05:11]} 21. Nc2 {[%emt 0:01:12]} Nc5 {[%emt 0:00:38]} 22. Nd4 {[%emt 0:04:11]} Ne6 {[%emt 0:00:39]} 23. Nc2 {[%emt 0:02:38]} Nc5 {[%emt 0:00:16]} 24. Nd4 {[%emt 0:00:41]} Ne6 {[%emt 0:00:09]} 25. Nc2 {[%emt 0:00:40]} 1/2-1/2

[Event "POL-chT 2nd League-3 2020"]
[Site "Poronin"]
[Date "2020.09.08"]
[Round "4.21"]
[White "Markiewicz, Jerzy"]
[Black "Parol, Pola"]
[Result "1-0"]
[ECO "B90"]
[WhiteElo "2169"]
[BlackElo "2076"]
[Annotator "ChessBase"]
[PlyCount "142"]
[EventDate "2020.09.05"]
[EventType "team-tourn"]
[EventCountry "POL"]
[SourceTitle "playchess.com"]
[Source "ChessBase"]
[SourceQuality "1"]
[TimeControl "40/5400+30:900+30"]

1. e4 {[%emt 0:00:41]} c5 {[%emt 0:00:00]} 2. Nf3 {[%emt 0:00:08]} d6 {[%emt 0:00:00]} 3. d4 {[%emt 0:00:19]} cxd4 {[%emt 0:00:00]} 4. Nxd4 {[%emt 0:00:07]} Nf6 {[%emt 0:00:00]} 5. Nc3 {[%emt 0:00:51]} a6 {[%emt 0:00:04]} 6. h4 {[%emt 0:04:13]} e5 {[%emt 0:02:25]} 7. Nb3 {[%emt 0:00:07]} Be7 {[%emt 0:00:55]} 8. Bg5 {[%emt 0:00:07]} Nbd7 {[%emt 0:01:15]} 9. a4 {[%emt 0:05:32]} O-O {[%emt 0:06:06]} 10. Be2 {[%emt 0:05:06]} b6 {[%emt 0:06:35]} 11. Bf3 {[%emt 0:06:00]} Bb7 {[%emt 0:01:00]} 12. g4 {[%emt 0:06:36]} Rc8 {[%emt 0:13:10]} 13. Bxf6 {[%emt 0:04:54]} Nxf6 {[%emt 0:02:17]} 14. g5 {[%emt 0:00:11]} Nd7 {[%emt 0:01:59]} 15. Qd3 {[%emt 0:07:11]} Nc5 {[%emt 0:05:17]} 16. Nxc5 {[%emt 0:01:18]} dxc5 {[%emt 0:01:21]} 17. Qc4 {[%emt 0:24:25]} Qd4 {[%emt 0:04:54]} 18. Be2 {[%emt 0:00:30]} Rfd8 {[%emt 0:05:37]} 19. Rd1 {[%emt 0:02:38]} Qxc4 {[%emt 0:00:06]} 20. Bxc4 {[%emt 0:00:53]} Rd4 {[%emt 0:02:09]} 21. b3 {[%emt 0:08:05]} Rcd8 {[%emt 0:04:36]} 22. f3 {[%emt 0:00:57]} g6 {[%emt 0:05:02]} 23. Bd5 {[%emt 0:05:27]} Rxd1+ {[%emt 0:08:01]} 24. Kxd1 {[%emt 0:00:21]} Bc8 {[%emt 0:04:23]} 25. Ke2 {[%emt 0:00:39]} Kg7 {[%emt 0:00:58]} 26. Nd1 {[%emt 0:03:03]} f6 {[%emt 0:01:55]} 27. gxf6+ {[%emt 0:00:40]} Bxf6 {[%emt 0:02:29]} 28. h5 {[%emt 0:00:46]} g5 {[%emt 0:02:06]} 29. Ne3 {[%emt 0:00:14]} Bd7 {[%emt 0:04:53]} 30. Bb7 {[%emt 0:04:14]} Bc8 {[%emt 0:04:37]} 31. Bxc8 {[%emt 0:00:37]} Rxc8 {[%emt 0:00:02]} 32. Nc4 {[%emt 0:02:42]} Rc6 {[%emt 0:04:51]} 33. Rd1 {[%emt 0:00:16]} b5 {[%emt 0:04:11]} 34. Rd7+ {[%emt 0:00:14]} Kh6 {[%emt 0:00:34]} 35. axb5 {[%emt 0:01:12]} axb5 {[%emt 0:00:01]} 36. Nd6 {[%emt 0:00:28]} b4 {[%emt 0:00:51]} 37. Kd3 {[%emt 0:02:58]} Kxh5 {[%emt 0:02:17]} 38. Rxh7+ {[%emt 0:00:15]} Kg6 {[%emt 0:00:03]} 39. Rd7 {[%emt 0:00:06]} Be7 {[%emt 0:01:28]} 40. Nc4 {[%emt 0:00:00]} Re6 {[%emt 0:00:00]} 41. Rd5 {[%emt 0:03:53]} Kf6 {[%emt 0:02:44]} 42. Ne3 {[%emt 0:00:13]} Rd6 {[%emt 0:01:28]} 43. Kc4 {[%emt 0:00:16]} Ke6 {[%emt 0:01:43]} 44. Rxd6+ {[%emt 0:03:09]} Bxd6 {[%emt 0:00:16]} 45. Ng4 {[%emt 0:00:55]} Bf8 {[%emt 0:01:07]} 46. Nf2 {[%emt 0:00:16]} Kd6 {[%emt 0:08:42]} 47. Nd3 {[%emt 0:01:07]} Kc6 {[%emt 0:00:13]} 48. Nxe5+ {[%emt 0:00:26]} Kd6 {[%emt 0:00:17]} 49. Ng4 {[%emt 0:01:54]} Bg7 {[%emt 0:00:29]} 50. Ne3 {[%emt 0:01:25]} Bd4 {[%emt 0:00:49]} 51. Nf5+ {[%emt 0:05:50]} Ke5 {[%emt 0:00:02]} 52. Nxd4 {[%emt 0:01:12]} cxd4 {[%emt 0:00:01]} 53. Kxb4 {[%emt 0:03:25]} Kf4 {[%emt 0:00:06]} 54. Kc4 {[%emt 0:00:28]} Kxf3 {[%emt 0:00:33]} 55. e5 {[%emt 0:00:03]} g4 {[%emt 0:00:07]} 56. e6 {[%emt 0:00:03]} g3 {[%emt 0:00:07]} 57. e7 {[%emt 0:00:08]} g2 {[%emt 0:00:05]} 58. e8=Q {[%emt 0:00:07]} g1=Q {[%emt 0:00:09]} 59. Qe5 {[%emt 0:00:46]} Qf1+ {[%emt 0:03:10]} 60. Kxd4 {[%emt 0:00:28]} Qa1+ {[%emt 0:00:55]} 61. c3 {[%emt 0:00:21]} Qa7+ {[%emt 0:00:37]} 62. Qc5 {[%emt 0:00:16]} Qg7+ {[%emt 0:00:27]} 63. Kc4 {[%emt 0:00:10]} Qg4+ {[%emt 0:00:17]} 64. Kb5 {[%emt 0:00:15]} Qg8 {[%emt 0:01:39]} 65. c4 {[%emt 0:00:34]} Qb8+ {[%emt 0:00:46]} 66. Qb6 {[%emt 0:00:44]} Qe5+ {[%emt 0:00:25]} 67. Ka6 {[%emt 0:01:26]} Qa1+ {[%emt 0:00:32]} 68. Kb7 {[%emt 0:00:08]} Ke2 {[%emt 0:01:30]} 69. b4 {[%emt 0:01:13]} Qg7+ {[%emt 0:00:39]} 70. Qc7 {[%emt 0:00:21]} Qd4 {[%emt 0:00:38]} 71. b5 {[%emt 0:00:24]} Qd5+ {[%emt 0:00:40]} 1-0

[Event "POL-chT 2nd League-3 2020"]
[Site "Poronin"]
[Date "2020.09.08"]
[Round "4.22"]
[White "Kowalec, Maciej"]
[Black "Augustyn, Sebastian"]
[Result "1/2-1/2"]
[ECO "A46"]
[WhiteElo "2092"]
[BlackElo "2148"]
[Annotator "ChessBase"]
[PlyCount "35"]
[EventDate "2020.09.05"]
[EventType "team-tourn"]
[EventCountry "POL"]
[SourceTitle "playchess.com"]
[Source "ChessBase"]
[SourceQuality "1"]
[TimeControl "40/5400+30:900+30"]

1. d4 {[%emt 0:00:00]} Nf6 {[%emt 0:02:14]} 2. Nf3 {[%emt 0:00:00]} e6 {[%emt 0:01:13]} 3. e3 {[%emt 0:00:16]} b6 {[%emt 0:00:40]} 4. c4 {[%emt 0:01:29]} Bb7 {[%emt 0:00:03]} 5. Bd3 {[%emt 0:01:16]} Bb4+ {[%emt 0:14:55]} 6. Bd2 {[%emt 0:01:40]} Qe7 {[%emt 0:00:19]} 7. O-O {[%emt 0:01:44]} O-O {[%emt 0:00:26]} 8. a3 {[%emt 0:00:46]} Bxd2 {[%emt 0:00:34]} 9. Nbxd2 {[%emt 0:00:22]} d6 {[%emt 0:00:32]} 10. Qc2 {[%emt 0:06:02]} e5 {[%emt 0:02:53]} 11. Ne4 {[%emt 0:03:14]} Nbd7 {[%emt 0:03:36]} 12. Nfd2 {[%emt 0:12:26]} c5 {[%emt 0:12:53]} 13. dxe5 {[%emt 0:06:31]} dxe5 {[%emt 0:01:03]} 14. Nxf6+ {[%emt 0:05:46]} Nxf6 {[%emt 0:00:15]} 15. Ne4 {[%emt 0:01:13]} Ne8 {[%emt 0:24:54]} 16. Nc3 {[%emt 0:06:08]} Nf6 {[%emt 0:00:34]} 17. Ne4 {[%emt 0:01:42]} Ne8 {[%emt 0:00:35]} 18. Nc3 {[%emt 0:00:41]} 1/2-1/2